bitfinex/quotes_SOLUSD_20230116
["timestamp","ask_amount","ask_price","bid_price","bid_amount"]
[1673894023434,20.0,23.216,23.202,114.4964]
[1673894023643,17.0,23.215,23.202,114.4964]
[1673894024083,17.0,23.215,23.196,52.35]
[1673894024919,20.0,23.216,23.196,52.35]
[1673894025336,17.0,23.215,23.196,52.35]
[1673894027640,52.32,23.218,23.196,52.35]
[1673894027851,20.0,23.218,23.198,49.35]
[1673894028069,20.0,23.219,23.199,20.0]
[1673894028265,20.0,23.219,23.2,17.0]
[1673894028477,20.0,23.22,23.201,20.0]
[1673894028814,20.0,23.22,23.203,20.0]
[1673894029346,20.0,23.22,23.204,17.0]
[1673894030289,20.0,23.22,23.201,20.0]
[1673894030509,20.0,23.218,23.202,17.0]
[1673894030688,20.0,23.217,23.202,17.0]
[1673894033950,20.0,23.217,23.203,20.0]
[1673894034160,20.0,23.219,23.203,20.0]
[1673894034379,20.0,23.221,23.203,20.0]
[1673894034702,32.31,23.224,23.205,20.0]
[1673894034703,20.0,23.223,23.205,20.0]
[1673894034917,20.0,23.223,23.206,17.0]
[1673894035121,32.31,23.222,23.206,17.0]
[1673894035313,32.31,23.227,23.207,49.27585844]
[1673894035649,32.3,23.229,23.21,12.62]
[1673894035835,32.3,23.234,23.211,37.0]
[1673894036045,32.3,23.234,23.212,20.0]
[1673894036270,32.3,23.234,23.213,37.0]
[1673894036473,20.0,23.232,23.214,20.0]
[1673894036684,20.0,23.232,23.215,17.0]
[1673894038269,32.3,23.234,23.215,17.0]
[1673894038484,32.29,23.237,23.215,66.26585844]
[1673894038671,20.0,23.236,23.215,66.26585844]
[1673894038900,20.0,23.236,23.216,20.0]
[1673894039112,20.0,23.236,23.217,17.0]
[1673894039300,20.0,23.236,23.218,20.0]
[1673894039517,20.0,23.236,23.219,17.0]
[1673894043029,20.0,23.236,23.22,20.0]
[1673894043325,20.0,23.236,23.221,17.0]
[1673894043747,20.0,23.238,23.221,17.0]
[1673894044162,20.0,23.238,23.222,20.0]
[1673894045422,20.0,23.238,23.221,17.0]
[1673894045742,20.0,23.236,23.219,118.0188]
[1673894045951,17.0,23.235,23.219,118.0188]
[1673894046777,20.0,23.236,23.22,20.0]
[1673894046986,40.0,23.236,23.22,20.0]
[1673894047210,20.0,23.236,23.22,20.0]
[1673894047651,40.0,23.236,23.22,20.0]
[1673894047948,20.0,23.236,23.22,20.0]
[1673894048157,40.0,23.236,23.22,20.0]
[1673894048352,20.0,23.236,23.22,20.0]
[1673894048567,40.0,23.236,23.22,20.0]
[1673894048776,20.0,23.236,23.22,20.0]
[1673894048986,40.0,23.236,23.219,138.0188]
[1673894049196,20.0,23.236,23.221,20.0]
[1673894049527,40.0,23.236,23.221,20.0]
[1673894049735,20.0,23.236,23.221,20.0]
[1673894050050,40.0,23.236,23.221,20.0]
[1673894050364,20.0,23.236,23.221,20.0]
[1673894050581,40.0,23.236,23.219,118.0188]
[1673894050769,20.0,23.236,23.219,118.0188]
[1673894050980,40.0,23.236,23.219,118.0188]
[1673894051206,52.29,23.237,23.219,118.0188]
[1673894051444,20.0,23.236,23.221,20.0]
[1673894051656,20.0,23.236,23.222,17.0]
[1673894052367,22.46816642,23.272,23.222,17.0]
[1673894052368,32.27,23.255,23.23,12.63]
[1673894052572,32.27,23.255,23.231,147.561]
[1673894052802,32.27,23.255,23.231,196.80685844]
[1673894052999,20.0,23.254,23.232,20.0]
[1673894053209,20.0,23.254,23.233,37.0]
[1673894053626,32.27,23.255,23.233,69.3]
[1673894053855,32.27,23.255,23.234,20.0]
[1673894054070,12.55,23.25,23.231,110.561]
[1673894054278,20.0,23.249,23.231,110.561]
[1673894054781,20.0,23.249,23.232,20.0]
[1673894054996,20.0,23.249,23.231,110.561]
[1673894054997,17.0,23.248,23.231,110.561]
[1673894055202,20.0,23.247,23.231,110.561]
[1673894055416,20.0,23.247,23.232,20.0]
[1673894056270,269.617997,23.318,23.232,20.0]
[1673894056271,32.27,23.255,23.232,20.0]
[1673894056481,17.0,23.253,23.234,20.0]
[1673894056679,17.0,23.253,23.235,17.0]
[1673894057219,32.27,23.255,23.236,20.0]
[1673894057744,20.0,23.254,23.234,20.0]
[1673894058360,17.0,23.253,23.234,20.0]
[1673894058793,49.27,23.253,23.234,20.0]
[1673894059004,20.0,23.252,23.234,20.0]
[1673894059221,17.0,23.251,23.234,20.0]
[1673894059539,17.0,23.251,23.233,20.0]
[1673894059855,37.0,23.252,23.234,52.3]
[1673894060368,37.0,23.252,23.234,20.0]
[1673894061529,17.0,23.252,23.234,20.0]
[1673894061847,49.27,23.253,23.235,37.0]
[1673894062036,17.0,23.253,23.235,37.0]
[1673894062248,17.0,23.253,23.236,20.0]
[1673894063106,37.0,23.254,23.236,20.0]
[1673894063514,17.0,23.254,23.236,20.0]
[1673894063933,17.0,23.255,23.236,20.0]
[1673894064152,117.6813,23.257,23.237,17.0]
[1673894064476,20.0,23.256,23.237,49.29]
[1673894064692,20.0,23.256,23.238,20.0]
[1673894064903,20.0,23.256,23.239,17.0]
[1673894065104,20.0,23.256,23.239,49.29]
[1673894065632,20.0,23.256,23.24,20.0]
[1673894065844,20.0,23.256,23.241,17.0]
[1673894066052,20.0,23.256,23.242,20.0]
[1673894066663,20.0,23.256,23.243,17.0]
[1673894067106,20.0,23.256,23.242,20.0]
[1673894067291,20.0,23.256,23.238,20.0]
[1673894067505,20.0,23.254,23.236,20.0]
[1673894068895,32.27,23.255,23.236,20.0]
[1673894069109,17.0,23.254,23.236,20.0]
[1673894069830,17.0,23.255,23.236,20.0]
[1673894070024,20.0,23.254,23.236,20.0]
[1673894070240,17.0,23.253,23.235,112.9806]
[1673894070449,49.27,23.253,23.235,112.9806]
[1673894070766,20.0,23.252,23.235,112.9806]
[1673894070987,17.0,23.251,23.235,112.9806]
[1673894071399,32.27,23.25,23.235,112.9806]
[1673894071616,20.0,23.248,23.235,112.9806]
[1673894071836,17.0,23.251,23.235,112.9806]
[1673894072362,12.55,23.25,23.235,112.9806]
[1673894072680,37.0,23.249,23.235,112.9806]
[1673894073732,20.0,23.248,23.231,110.561]
[1673894073922,37.0,23.247,23.231,110.561]
[1673894074132,20.0,23.246,23.231,110.561]
[1673894074365,37.0,23.245,23.231,110.561]
[1673894075195,20.0,23.245,23.231,110.561]
[1673894075393,17.0,23.244,23.231,110.561]
[1673894075603,20.0,23.243,23.231,110.561]
[1673894076147,17.0,23.244,23.231,110.561]
[1673894076550,20.0,23.244,23.231,110.561]
[1673894076870,17.0,23.243,23.231,110.561]
[1673894078774,17.0,23.244,23.231,110.561]
[1673894079724,52.28,23.246,23.231,110.561]
[1673894079927,20.0,23.244,23.228,114.9471]
[1673894080250,17.0,23.243,23.228,114.9471]
[1673894081191,17.0,23.243,23.229,20.0]
[1673894081402,52.28,23.246,23.231,20.0]
[1673894081607,20.0,23.246,23.231,20.0]
[1673894084862,20.0,23.246,23.23,17.0]
[1673894086135,20.0,23.245,23.228,114.9471]
[1673894087408,17.0,23.244,23.228,114.9471]
[1673894088142,20.0,23.247,23.228,114.9471]
[1673894088349,52.26,23.258,23.23,12.63]
[1673894088542,52.26,23.258,23.231,17.0]
[1673894088752,52.26,23.258,23.232,20.0]
[1673894088962,52.26,23.258,23.233,17.0]
[1673894089284,52.26,23.258,23.234,40.0]
[1673894089488,52.26,23.258,23.234,20.0]
[1673894089699,12.62,23.25,23.231,111.8914]
[1673894089905,37.0,23.249,23.231,111.8914]
[1673894090112,20.0,23.248,23.231,111.8914]
[1673894090437,37.0,23.247,23.231,111.8914]
[1673894090658,20.0,23.246,23.231,111.8914]
[1673894090852,37.0,23.247,23.232,20.0]
[1673894093500,20.0,23.247,23.232,20.0]
[1673894093703,20.0,23.249,23.232,20.0]
[1673894093898,17.0,23.248,23.232,20.0]
[1673894094109,20.0,23.247,23.232,20.0]
[1673894094320,12.69,23.26,23.233,17.0]
[1673894094542,52.27,23.255,23.234,20.0]
[1673894094750,52.27,23.255,23.235,17.0]
[1673894094751,20.0,23.255,23.235,17.0]
[1673894094961,32.27,23.256,23.236,20.0]
[1673894095289,20.0,23.256,23.238,20.0]
[1673894095910,117.6813,23.257,23.239,17.0]
[1673894096230,20.0,23.255,23.24,20.0]
[1673894096418,20.0,23.255,23.238,20.0]
[1673894096633,20.0,23.255,23.239,17.0]
[1673894098737,40.0,23.256,23.239,17.0]
[1673894098738,20.0,23.256,23.239,17.0]
[1673894098948,20.0,23.256,23.24,20.0]
[1673894099369,20.0,23.256,23.241,17.0]
[1673894099573,32.26,23.262,23.241,17.0]
[1673894099787,32.25,23.264,23.242,20.0]
[1673894100002,32.26,23.262,23.243,17.0]
[1673894100204,20.0,23.261,23.244,20.0]
[1673894100644,17.0,23.26,23.244,20.0]
[1673894100844,29.56,23.26,23.24,20.0]
[1673894101051,32.26,23.259,23.24,20.0]
[1673894101262,37.0,23.258,23.24,20.0]
[1673894101482,20.0,23.258,23.24,20.0]
[1673894101704,20.0,23.259,23.24,20.0]
[1673894102351,20.0,23.259,23.242,20.0]
[1673894102863,32.26,23.262,23.243,17.0]
[1673894103077,20.0,23.263,23.245,20.0]
[1673894103395,17.0,23.262,23.245,20.0]
[1673894104224,52.25,23.265,23.245,20.0]
[1673894104447,52.25,23.265,23.246,17.0]
[1673894104657,32.25,23.265,23.245,20.0]
[1673894104976,32.25,23.265,23.247,20.0]
[1673894105187,145.8577,23.266,23.249,20.0]
[1673894105383,113.6077,23.266,23.249,20.0]
[1673894106006,32.25,23.268,23.249,20.0]
[1673894106215,20.0,23.267,23.249,20.0]
[1673894106446,17.0,23.266,23.249,20.0]
[1673894106872,20.0,23.267,23.25,17.0]
[1673894107068,20.0,23.266,23.249,20.0]
[1673894107284,52.25,23.266,23.246,132.7902]
[1673894107495,52.25,23.266,23.247,20.0]
[1673894108230,17.0,23.265,23.247,20.0]
[1673894113363,37.0,23.265,23.247,20.0]
[1673894114529,12.55,23.26,23.239,32.29]
[1673894114740,12.55,23.26,23.238,20.0]
[1673894114741,20.0,23.258,23.238,20.0]
[1673894114950,37.0,23.257,23.238,20.0]
[1673894115170,69.26,23.257,23.238,20.0]
[1673894115489,32.26,23.263,23.24,12.52]
[1673894115805,32.25,23.268,23.241,63.35123987]
[1673894115997,32.25,23.268,23.242,20.0]
[1673894116208,32.25,23.268,23.243,17.0]
[1673894116419,32.25,23.268,23.244,110.1463]
[1673894116624,32.25,23.268,23.245,17.0]
[1673894116845,32.25,23.268,23.246,20.0]
[1673894117075,32.25,23.268,23.247,17.0]
[1673894117270,32.25,23.268,23.248,20.0]
[1673894117588,32.25,23.268,23.25,20.0]
[1673894117807,20.0,23.267,23.25,20.0]
[1673894118021,52.25,23.267,23.251,17.0]
[1673894118210,20.0,23.267,23.251,17.0]
[1673894118420,20.0,23.267,23.25,20.0]
[1673894119903,17.0,23.266,23.25,20.0]
[1673894122640,20.0,23.267,23.251,17.0]
[1673894122878,20.0,23.268,23.252,20.0]
[1673894123372,20.0,23.268,23.253,17.0]
[1673894123777,40.0,23.269,23.253,17.0]
[1673894124426,20.0,23.269,23.253,17.0]
[1673894124640,123.0398,23.27,23.253,17.0]
[1673894124843,32.24,23.272,23.254,20.0]
[1673894125057,32.24,23.274,23.255,37.0]
[1673894125373,32.24,23.275,23.255,37.0]
[1673894125577,32.24,23.275,23.257,20.0]
[1673894125789,32.23,23.279,23.258,17.0]
[1673894125996,32.23,23.279,23.259,20.0]
[1673894126316,20.0,23.278,23.26,17.0]
[1673894126513,20.0,23.278,23.261,20.0]
[1673894126723,52.23,23.279,23.261,20.0]
[1673894127157,20.0,23.279,23.261,20.0]
[1673894127369,20.0,23.279,23.263,20.0]
[1673894127578,52.23,23.279,23.263,20.0]
[1673894129045,20.0,23.279,23.263,20.0]
[1673894129248,20.0,23.281,23.264,17.0]
[1673894129457,32.23,23.282,23.264,17.0]
[1673894129793,32.22,23.287,23.265,32.25]
[1673894129982,32.22,23.287,23.266,37.0]
[1673894130193,32.22,23.289,23.266,37.0]
[1673894130422,20.0,23.285,23.268,20.0]
[1673894130631,20.0,23.285,23.269,17.0]
[1673894130844,20.0,23.283,23.269,17.0]
[1673894131038,20.0,23.283,23.268,20.0]
[1673894131368,20.0,23.283,23.267,114.1192]
[1673894131574,20.0,23.281,23.257,169.4205]
[1673894131897,20.0,23.279,23.26,20.0]
[1673894132396,32.24,23.278,23.26,32.63]
[1673894132606,20.0,23.277,23.26,32.63]
[1673894132816,20.0,23.28,23.261,17.0]
[1673894133252,0.885,23.281,23.262,20.0]
[1673894133467,20.0,23.283,23.27,12.63]
[1673894133676,12.5,23.3,23.27,12.63]
[1673894133891,12.5,23.3,23.271,32.24]
[1673894134086,32.21,23.294,23.271,32.24]
[1673894134300,20.0,23.294,23.272,37.0]
[1673894134501,20.0,23.294,23.273,20.0]
[1673894134710,32.21,23.293,23.274,17.0]
[1673894134940,32.21,23.298,23.274,17.0]
[1673894135151,12.5,23.3,23.274,17.0]
[1673894135152,32.21,23.295,23.275,20.0]
[1673894135966,12.63,23.29,23.274,116.563]
[1673894136205,20.0,23.289,23.263,32.26]
[1673894136409,52.22,23.289,23.266,116.563]
[1673894136626,17.0,23.288,23.266,116.563]
[1673894136935,20.0,23.287,23.267,20.0]
[1673894137146,17.0,23.286,23.267,20.0]
[1673894137338,52.22,23.287,23.267,20.0]
[1673894137545,32.23,23.285,23.267,20.0]
[1673894137760,20.0,23.287,23.268,17.0]
[1673894138089,20.0,23.288,23.268,17.0]
[1673894138498,49.22,23.287,23.268,17.0]
[1673894138833,20.0,23.286,23.269,20.0]
[1673894139164,20.0,23.286,23.27,17.0]
[1673894139333,20.0,23.286,23.269,20.0]
[1673894139550,17.0,23.285,23.269,20.0]
[1673894139986,20.0,23.286,23.269,20.0]
[1673894140193,17.0,23.285,23.269,20.0]
[1673894140505,17.0,23.286,23.267,20.0]
[1673894140714,49.22,23.286,23.267,20.0]
[1673894140916,32.22,23.286,23.267,20.0]
[1673894141965,32.22,23.286,23.268,17.0]
[1673894142293,12.62,23.28,23.257,149.4205]
[1673894142483,37.0,23.279,23.258,118.1416]
[1673894142692,20.0,23.278,23.259,20.0]
[1673894142919,20.0,23.277,23.259,20.0]
[1673894143130,52.24,23.277,23.259,20.0]
[1673894143342,20.0,23.285,23.259,20.0]
[1673894143343,12.5,23.3,23.271,20.0]
[1673894143743,20.0,23.295,23.273,20.0]
[1673894143955,12.55,23.29,23.27,116.0263]
[1673894144378,32.22,23.289,23.271,17.0]
[1673894144603,20.0,23.288,23.271,17.0]
[1673894144810,20.0,23.288,23.272,20.0]
[1673894145029,32.22,23.289,23.273,17.0]
[1673894145226,32.21,23.293,23.274,20.0]
[1673894145463,32.21,23.293,23.276,20.0]
[1673894145793,32.21,23.293,23.277,17.0]
[1673894145985,20.0,23.291,23.272,20.0]
[1673894146200,20.0,23.29,23.273,17.0]
[1673894146417,20.0,23.289,23.273,17.0]
[1673894146606,20.0,23.288,23.273,17.0]
[1673894147037,20.0,23.288,23.272,20.0]
[1673894147251,20.0,23.289,23.273,17.0]
[1673894147772,20.0,23.287,23.271,20.0]
[1673894147985,40.0,23.287,23.271,20.0]
[1673894148311,20.0,23.286,23.271,20.0]
[1673894148733,20.0,23.289,23.271,20.0]
[1673894149136,20.0,23.289,23.272,17.0]
[1673894149346,20.0,23.289,23.273,20.0]
[1673894149574,20.0,23.291,23.274,17.0]
[1673894149761,20.0,23.291,23.275,20.0]
[1673894149972,32.21,23.294,23.277,20.0]
[1673894150312,20.0,23.292,23.278,17.0]
[1673894150497,32.21,23.294,23.277,20.0]
[1673894150715,20.0,23.299,23.278,17.0]
[1673894150920,32.21,23.299,23.278,17.0]
[1673894151134,32.21,23.299,23.279,17.54068031]
[1673894151335,32.21,23.299,23.28,17.0]
[1673894151551,32.21,23.299,23.281,20.0]
[1673894151883,20.0,23.298,23.281,20.0]
[1673894152281,20.0,23.298,23.282,17.0]
[1673894152914,20.0,23.298,23.281,17.0]
[1673894153140,20.0,23.297,23.28,17.0]
[1673894153329,20.0,23.296,23.28,17.0]
[1673894153968,44.93633284,23.338,23.281,53.02741214]
[1673894153969,12.55,23.31,23.281,53.02741214]
[1673894154186,103.51627965,23.339,23.281,53.02741214]
[1673894154187,12.55,23.32,23.29,12.63]
[1673894154395,12.55,23.32,23.291,37.0]
[1673894154715,12.55,23.32,23.292,20.0]
[1673894154932,12.55,23.32,23.294,20.0]
[1673894155130,12.55,23.32,23.295,17.0]
[1673894155342,12.55,23.32,23.294,68.25938325]
[1673894155662,20.0,23.318,23.292,131.657]
[1673894155874,20.0,23.317,23.292,131.657]
[1673894156062,20.0,23.316,23.292,131.657]
[1673894156273,12.56,23.31,23.292,111.657]
[1673894156485,20.0,23.309,23.294,20.0]
[1673894156736,20.0,23.309,23.292,111.657]
[1673894157125,20.0,23.313,23.292,111.657]
[1673894157347,20.0,23.312,23.293,20.0]
[1673894157544,20.0,23.311,23.293,20.0]
[1673894157963,20.0,23.311,23.294,17.0]
[1673894158282,20.0,23.315,23.295,20.0]
[1673894158283,20.0,23.313,23.295,20.0]
[1673894158496,20.0,23.314,23.297,20.0]
[1673894159847,20.0,23.314,23.299,20.0]
[1673894160062,20.0,23.318,23.3,17.0]
[1673894160268,20.0,23.318,23.299,20.0]
[1673894161344,20.0,23.319,23.301,20.0]
[1673894161535,20.0,23.327,23.302,17.0]
[1673894161536,20.0,23.326,23.302,17.0]
[1673894161757,12.5,23.32,23.302,51.76074547]
[1673894161966,20.0,23.319,23.302,34.76074547]
[1673894162190,20.0,23.319,23.303,34.76074547]
[1673894162497,20.0,23.319,23.304,20.0]
[1673894162896,20.0,23.319,23.306,20.0]
[1673894163217,20.0,23.324,23.306,20.0]
[1673894164310,20.0,23.324,23.301,20.0]
[1673894164527,12.63,23.32,23.301,20.0]
[1673894164729,20.0,23.319,23.301,20.0]
[1673894165664,20.0,23.322,23.302,34.2727948]
[1673894165874,20.0,23.321,23.303,20.0]
[1673894166317,20.0,23.32,23.303,20.0]
[1673894166709,20.0,23.318,23.303,20.0]
[1673894166936,17.0,23.317,23.303,20.0]
[1673894167261,20.0,23.316,23.303,20.0]
[1673894167471,20.0,23.32,23.303,20.0]
[1673894168187,40.0,23.323,23.303,20.0]
[1673894168402,40.0,23.323,23.301,20.0]
[1673894168614,40.0,23.323,23.296,131.663]
[1673894168615,20.0,23.319,23.295,41.60010335]
[1673894168934,20.0,23.319,23.277,20.0]
[1673894168935,16.74,23.31,23.287,17.06106067]
[1673894169261,61.46196354,23.319,23.287,17.06106067]
[1673894169262,20.0,23.309,23.293,20.0]
[1673894169444,20.0,23.319,23.293,20.0]
[1673894169654,17.0,23.318,23.293,20.0]
[1673894169983,37.0,23.318,23.293,20.0]
[1673894170176,20.0,23.318,23.293,20.0]
[1673894170387,20.0,23.318,23.293,37.06106067]
[1673894170595,20.0,23.318,23.294,17.0]
[1673894170821,20.0,23.319,23.295,20.0]
[1673894171015,20.0,23.319,23.297,20.0]
[1673894171559,20.0,23.319,23.298,17.0]
[1673894171782,20.0,23.319,23.297,20.0]
[1673894171992,20.0,23.317,23.296,110.0167]
[1673894172287,20.0,23.315,23.296,110.0167]
[1673894172504,17.0,23.314,23.296,110.0167]
[1673894172696,20.0,23.312,23.296,110.0167]
[1673894172911,37.0,23.311,23.296,110.0167]
[1673894173547,37.0,23.311,23.285,137.8366]
[1673894173548,16.62,23.31,23.285,137.8366]
[1673894173768,37.0,23.309,23.285,137.8366]
[1673894173977,37.0,23.309,23.286,20.0]
[1673894174819,20.0,23.309,23.288,37.06106067]
[1673894175029,40.0,23.313,23.29,20.0]
[1673894175224,17.0,23.312,23.291,17.0]
[1673894175434,20.0,23.311,23.292,20.0]
[1673894175658,20.0,23.311,23.293,17.0]
[1673894176816,17.0,23.31,23.293,17.0]
[1673894177030,20.0,23.309,23.293,17.0]
[1673894177655,20.0,23.309,23.294,17.0]
[1673894177871,113.4091,23.314,23.294,17.0]
[1673894178176,113.4091,23.314,23.293,17.0]
[1673894178399,16.74,23.33,23.295,37.06106067]
[1673894178580,20.0,23.322,23.297,20.0]
[1673894179027,20.0,23.322,23.298,34.06106067]
[1673894179212,20.0,23.324,23.298,34.06106067]
[1673894179422,139.5374,23.327,23.299,20.0]
[1673894179634,139.5374,23.327,23.301,20.0]
[1673894179966,139.5374,23.327,23.302,17.0]
[1673894180178,139.5374,23.327,23.303,20.0]
[1673894180701,16.74,23.32,23.301,20.0]
[1673894180886,37.0,23.319,23.301,20.0]
[1673894181100,20.0,23.318,23.299,20.0]
[1673894181312,37.0,23.317,23.299,20.0]
[1673894181945,20.0,23.317,23.299,20.0]
[1673894182365,20.0,23.319,23.301,20.0]
[1673894182593,20.0,23.323,23.301,20.0]
[1673894183451,20.0,23.323,23.302,17.0]
[1673894183849,20.0,23.323,23.303,20.0]
[1673894184059,20.0,23.323,23.305,20.0]
[1673894184286,160.99936354,23.327,23.305,20.0]
[1673894184287,119.5374,23.327,23.305,20.0]
[1673894184493,119.5374,23.327,23.306,17.0]
[1673894185029,119.5374,23.327,23.307,20.0]
[1673894185217,119.5374,23.327,23.308,17.0]
[1673894185534,109.8926,23.335,23.309,20.0]
[1673894185749,109.8926,23.335,23.31,17.0]
[1673894186286,119.3872,23.339,23.311,20.0]
[1673894186609,119.3872,23.339,23.312,17.0]
[1673894186794,119.3872,23.339,23.313,20.0]
[1673894186997,119.3872,23.339,23.314,17.0]
[1673894187231,119.3872,23.339,23.315,20.0]
[1673894187436,119.3872,23.339,23.316,129.6944]
[1673894187647,119.3872,23.339,23.317,20.0]
[1673894187848,119.3872,23.339,23.318,16.5]
[1673894188062,20.0,23.338,23.318,16.5]
[1673894188269,20.0,23.338,23.319,20.0]
[1673894190069,40.0,23.338,23.319,20.0]
[1673894190287,21.46196354,23.337,23.316,112.6944]
[1673894190498,20.0,23.336,23.31,20.0]
[1673894190802,16.74,23.33,23.309,114.9092]
[1673894191013,37.0,23.329,23.304,112.338]
[1673894191236,16.62,23.32,23.29,36.74]
[1673894191550,37.0,23.319,23.292,132.5716]
[1673894191856,16.74,23.31,23.292,112.5716]
[1673894192250,20.0,23.309,23.292,112.5716]
[1673894192464,20.0,23.309,23.293,20.0]
[1673894192675,20.0,23.316,23.293,20.0]
[1673894193303,20.0,23.319,23.293,20.0]
[1673894193728,20.0,23.319,23.294,17.06106067]
[1673894193938,20.0,23.325,23.296,20.0]
[1673894194143,17.0,23.324,23.297,17.0]
[1673894194361,20.0,23.323,23.296,20.0]
[1673894194571,20.0,23.321,23.296,20.0]
[1673894194793,20.0,23.32,23.296,133.7365]
[1673894195006,20.0,23.32,23.297,17.0]
[1673894195206,20.0,23.323,23.298,20.0]
[1673894195419,20.0,23.323,23.299,17.0]
[1673894195949,117.3026,23.327,23.299,17.0]
[1673894195950,117.3026,23.327,23.3,16.57]
[1673894196160,20.0,23.326,23.301,37.0]
[1673894196689,117.3026,23.327,23.302,20.0]
[1673894196888,117.3026,23.327,23.304,20.0]
[1673894197092,117.3026,23.327,23.305,17.0]
[1673894197513,117.3026,23.327,23.306,20.0]
[1673894197721,117.3026,23.327,23.307,17.0]
[1673894197948,117.3026,23.327,23.308,20.0]
[1673894198159,117.3026,23.327,23.31,20.0]
[1673894198902,17.0,23.326,23.303,20.0]
[1673894199099,20.0,23.325,23.303,20.0]
[1673894199315,138.76456354,23.327,23.303,20.0]
[1673894199316,117.3026,23.327,23.303,20.0]
[1673894199624,20.0,23.326,23.303,20.0]
[1673894199845,117.3026,23.327,23.303,20.0]
[1673894200364,17.0,23.326,23.303,20.0]
[1673894200593,16.74,23.32,23.296,133.7365]
[1673894200770,20.0,23.318,23.296,133.7365]
[1673894200981,20.0,23.317,23.296,133.7365]
[1673894201191,20.0,23.319,23.296,133.7365]
[1673894201433,17.0,23.318,23.296,133.7365]
[1673894201616,20.0,23.317,23.296,133.7365]
[1673894202033,20.0,23.315,23.296,113.7365]
[1673894202460,17.0,23.314,23.296,113.7365]
[1673894202679,40.0,23.313,23.296,113.7365]
[1673894202885,16.74,23.31,23.296,113.7365]
[1673894203402,41.46196354,23.319,23.296,113.7365]
[1673894203613,37.0,23.318,23.296,113.7365]
[1673894203932,17.0,23.318,23.297,20.0]